fUSD/lending_fUSD_20250622
["ID","MTS","AMOUNT","RATE_DAILY","PERIOD"]
[366921342,1750572654517,-490.0,0.00019178,2]
[366921343,1750572654527,-5595.75,0.00019178,2]
[366921344,1750572654538,-670.28,0.00019178,2]
[366921345,1750572654548,-9588.77,0.00019178,2]
[366921346,1750572654558,-4870.13,0.00019178,2]
[366921347,1750572654571,-490.0,0.00019178,2]
[366921348,1750572654581,-490.0,0.00019178,2]
[366921349,1750572654593,-2888.55,0.00019178,2]
[366921350,1750572654603,-490.0,0.00019178,2]
[366921351,1750572654613,-490.0,0.00019178,2]
[366921352,1750572654622,-490.0,0.00019178,2]
[366921353,1750572654632,-17077.48,0.00019178,2]
[366921354,1750572654642,-490.0,0.00019178,2]
[366921355,1750572654653,-1473.55,0.00019178,2]
[366921356,1750572654663,-490.0,0.00019178,2]
[366921357,1750572654672,-500.0,0.00019178,2]
[366921358,1750572654682,-500.0,0.00019178,2]
[366921359,1750572654691,-490.0,0.00019178,2]
[366921360,1750572654701,-500.0,0.00019178,2]
[366921361,1750572654711,-490.0,0.00019178,2]
[366921362,1750572654721,-511.18017411,0.00019178,2]
[366921363,1750572654731,-1059.28,0.00019178,2]
[366921364,1750572654741,-151.0,0.00019178,2]
[366921365,1750572654751,-2912.0,0.00019178,2]
[366921366,1750572654760,-490.0,0.00019178,2]
[366921367,1750572654770,-3556.78,0.00019178,2]
[366921368,1750572654780,-1940.65,0.00019178,2]
[366921369,1750572654789,-490.0,0.00019178,2]
[366921370,1750572654799,-490.0,0.00019178,2]
[366921371,1750572654809,-490.0,0.00019178,2]
[366921372,1750572654818,-12516.67,0.00019178,2]
[366921373,1750572654828,-1175.48,0.00019178,2]
[366921374,1750572654840,-873.35,0.00019178,2]
[366921375,1750572655074,-151.0,0.00019178,2]
[366921376,1750572655084,-490.0,0.00019178,2]
[366921377,1750572655094,-490.0,0.00019178,2]
[366921378,1750572655104,-641.16,0.00019178,2]
[366921379,1750572655114,-490.0,0.00019178,2]
[366921380,1750572655123,-490.0,0.00019178,2]
[366921381,1750572655133,-490.0,0.00019178,2]
[366921382,1750572655143,-490.0,0.00019178,2]
[366921383,1750572655152,-1529.92,0.00019178,2]
[366921384,1750572655162,-4107.81,0.00019178,2]
[366921385,1750572655171,-678.14,0.00019178,2]
[366921386,1750572655180,-500.0,0.00019178,2]
[366921387,1750572655190,-597.07,0.00019178,2]
[366921388,1750572655199,-6000.4,0.00019178,2]
[366921389,1750572655209,-500.0,0.00019178,2]
[366921390,1750572655219,-500.0,0.00019178,2]
[366921391,1750572655229,-500.0,0.00019178,2]
[366921392,1750572655239,-601.98,0.00019178,2]
[366921393,1750572655249,-500.0,0.00019178,2]
[366921394,1750572655259,-500.0,0.00019178,2]
[366921395,1750572655268,-883.18,0.00019178,2]
[366921396,1750572655278,-500.0,0.00019178,2]
[366921397,1750572655287,-500.0,0.00019178,2]
[366921398,1750572655296,-490.0,0.00019178,2]
[366921399,1750572655305,-490.0,0.00019178,2]
[366921400,1750572655315,-3531.15,0.00019178,2]
[366921401,1750572655324,-490.0,0.00019178,2]
[366921402,1750572655334,-490.0,0.00019178,2]
[366921403,1750572655343,-1484.56,0.00019178,2]
[366921404,1750572655352,-191.89738591,0.00019178,2]
[366921405,1750572655362,-490.0,0.00019178,2]
[366921406,1750572655371,-490.0,0.00019178,2]
[366921407,1750572655381,-490.0,0.00019178,2]
[366921408,1750572655391,-490.0,0.00019178,2]
[366921409,1750572655401,-11139.02,0.00019178,2]
[366921410,1750572655410,-508.45,0.00019178,2]
[366921411,1750572655421,-508.45,0.00019178,2]
[366921412,1750572655434,-594.3,0.00019178,2]
[366921413,1750572655443,-508.45,0.00019178,2]
[366921414,1750572655453,-2582.97,0.00019178,2]
[366921415,1750572655463,-508.45,0.00019178,2]
[366921416,1750572655472,-490.0,0.00019178,2]
[366921417,1750572655482,-508.45,0.00019178,2]
[366921418,1750572655492,-508.45,0.00019178,2]
[366921419,1750572655501,-490.0,0.00019178,2]
[366921420,1750572655511,-490.0,0.00019178,2]
[366921421,1750572655526,-340.35797072,0.00019178,2]
[366921422,1750572655536,-490.0,0.00019178,2]
[366921423,1750572655546,-490.0,0.00019178,2]
[366921424,1750572655555,-930.05,0.00019178,2]
[366921425,1750572655566,-5232.63,0.00019178,2]
[366921426,1750572655575,-490.0,0.00019178,2]
[366921427,1750572655584,-490.0,0.00019178,2]
[366921428,1750572655596,-2459.58,0.00019178,2]
[366921429,1750572655605,-1806.0,0.00019178,2]
[366921430,1750572655615,-490.0,0.00019178,2]
[366921431,1750572655624,-490.0,0.00019178,2]
[366921432,1750572655633,-523.72,0.00019178,2]
[366921433,1750572655643,-1631.39,0.00019178,2]
[366921434,1750572655652,-490.0,0.00019178,2]
[366921435,1750572655662,-4905.48,0.00019178,2]
[366921436,1750572655671,-1652.69,0.00019178,2]
[366921437,1750572655681,-1872.47,0.00019178,2]
[366921438,1750572655691,-490.0,0.00019178,2]
[366921439,1750572655700,-490.0,0.00019178,2]
[366921440,1750572655709,-748.59,0.00019178,2]
[366921441,1750572655719,-4599.26,0.00019178,2]
[366921442,1750572655728,-1431.95,0.00019178,2]
[366921443,1750572655737,-490.0,0.00019178,2]
[366921444,1750572655748,-490.0,0.00019178,2]
[366921445,1750572655757,-490.0,0.00019178,2]
[366921446,1750572655767,-469.68401712,0.00019178,2]
[366921447,1750572655776,-3871.11,0.00019178,2]
[366921448,1750572655785,-904.97,0.00019178,2]
[366921449,1750572655795,-2245.6,0.00019178,2]
[366921450,1750572655805,-490.0,0.00019178,2]
[366921451,1750572655814,-490.0,0.00019178,2]
[366921452,1750572655823,-490.0,0.00019178,2]
[366921453,1750572655832,-490.0,0.00019178,2]
[366921454,1750572655842,-490.0,0.00019178,2]
[366921455,1750572655851,-490.0,0.00019178,2]
[366921456,1750572655860,-1125.33,0.00019178,2]
[366921457,1750572655869,-490.0,0.00019178,2]
[366921458,1750572655879,-1152.39,0.00019178,2]
[366921459,1750572655889,-490.0,0.00019178,2]
[366921460,1750572655898,-1868.94,0.00019178,2]
[366921461,1750572655907,-490.0,0.00019178,2]
[366921462,1750572655916,-490.0,0.00019178,2]
[366921463,1750572655925,-1544.09,0.00019178,2]
[366921464,1750572655934,-910.76,0.00019178,2]
[366921465,1750572655943,-490.0,0.00019178,2]
[366921466,1750572655952,-1371.68,0.00019178,2]
[366921467,1750572655961,-490.0,0.00019178,2]
[366921468,1750572655970,-500.0,0.00019178,2]
[366921469,1750572655980,-490.0,0.00019178,2]
[366921470,1750572655989,-490.0,0.00019178,2]
[366921471,1750572655998,-500.0,0.00019178,2]
[366921472,1750572656008,-500.0,0.00019178,2]
[366921473,1750572656017,-500.0,0.00019178,2]
[366921474,1750572656026,-593.12,0.00019178,2]
[366921475,1750572656035,-500.0,0.00019178,2]
[366921476,1750572656043,-490.0,0.00019178,2]
[366921477,1750572656052,-500.0,0.00019178,2]
[366921478,1750572656061,-500.0,0.00019178,2]
[366921479,1750572656071,-2775.61,0.00019178,2]
[366921480,1750572656080,-490.0,0.00019178,2]
[366921481,1750572656091,-490.0,0.00019178,2]
[366921482,1750572656101,-490.0,0.00019178,2]
[366921483,1750572656112,-490.0,0.00019178,2]
[366921484,1750572656122,-490.0,0.00019178,2]
[366921485,1750572656131,-1250.12,0.00019178,2]
[366921486,1750572656142,-490.0,0.00019178,2]
[366921487,1750572656151,-490.0,0.00019178,2]
[366921488,1750572656161,-5256.67,0.00019178,2]
[366921489,1750572656170,-490.0,0.00019178,2]
[366921490,1750572656180,-11412.55,0.00019178,2]
[366921491,1750572656189,-625.18,0.00019178,2]
[366921492,1750572656198,-490.0,0.00019178,2]
[366921493,1750572656208,-490.0,0.00019178,2]
[366921494,1750572656217,-991.44,0.00019178,2]
[366921495,1750572656226,-490.0,0.00019178,2]
[366921496,1750572656236,-26424.52,0.00019178,2]
[366921497,1750572656245,-4601.27,0.00019178,2]
[366921498,1750572656255,-761.68,0.00019178,2]
[366921499,1750572656264,-14075.96,0.00019178,2]
[366921500,1750572656274,-490.0,0.00019178,2]
[366921501,1750572656283,-490.0,0.00019178,2]
[366921502,1750572656292,-490.0,0.00019178,2]
[366921503,1750572656302,-490.0,0.00019178,2]
[366921504,1750572656312,-490.0,0.00019178,2]
[366921505,1750572656321,-490.0,0.00019178,2]
[366921506,1750572656331,-494.24292561,0.00019178,2]
[366921507,1750572656341,-490.0,0.00019178,2]
[366921508,1750572656349,-782.02,0.00019178,2]
[366921509,1750572656359,-490.0,0.00019178,2]
[366921510,1750572656368,-490.0,0.00019178,2]
[366921511,1750572656377,-490.0,0.00019178,2]
[366921512,1750572656387,-6796.49,0.00019178,2]
[366921513,1750572656397,-490.0,0.00019178,2]
[366921514,1750572656406,-1765.95,0.00019178,2]
[366921515,1750572656416,-490.0,0.00019178,2]
[366921516,1750572656426,-490.0,0.00019178,2]
[366921517,1750572656435,-4088.75,0.00019178,2]
[366921518,1750572656443,-3304.84,0.00019178,2]
[366921519,1750572656451,-490.0,0.00019178,2]
[366921520,1750572656460,-490.0,0.00019178,2]
[366921521,1750572656470,-2123.44,0.00019178,2]
[366921522,1750572656479,-490.0,0.00019178,2]
[366921523,1750572656489,-3296.52,0.00019178,2]
[366921524,1750572656498,-490.0,0.00019178,2]
[366921525,1750572656507,-490.0,0.00019178,2]
[366921526,1750572656520,-490.0,0.00019178,2]
[366921527,1750572656529,-490.0,0.00019178,2]
[366921528,1750572656538,-500.0,0.00019178,2]
[366921529,1750572656547,-490.0,0.00019178,2]
[366921530,1750572656556,-490.0,0.00019178,2]
[366921531,1750572656566,-500.0,0.00019178,2]
[366921532,1750572656575,-490.0,0.00019178,2]
[366921533,1750572656585,-500.0,0.00019178,2]
[366921534,1750572656597,-500.0,0.00019178,2]
[366921535,1750572656607,-500.0,0.00019178,2]
[366921536,1750572656616,-500.0,0.00019178,2]
[366921537,1750572656625,-500.0,0.00019178,2]
[366921538,1750572656635,-12199.14,0.00019178,2]
[366921539,1750572656643,-500.0,0.00019178,2]
[366921540,1750572656653,-1352.29,0.00019178,2]
[366921541,1750572656663,-632.58,0.00019178,2]
[366921542,1750572656672,-490.0,0.00019178,2]
[366921543,1750572656682,-490.0,0.00019178,2]
[366921544,1750572656691,-490.0,0.00019178,2]
[366921545,1750572656701,-816.34,0.00019178,2]
[366921546,1750572656710,-1666.55,0.00019178,2]
[366921547,1750572656720,-6113.03,0.00019178,2]
[366921548,1750572656729,-3212.36,0.00019178,2]
[366921549,1750572656739,-490.0,0.00019178,2]
[366921550,1750572656748,-6113.03,0.00019178,2]
[366921551,1750572656758,-1227.4,0.00019178,2]
[366921552,1750572656768,-6113.03,0.00019178,2]
[366921553,1750572656777,-490.0,0.00019178,2]
[366921554,1750572656786,-6113.03,0.00019178,2]
[366921555,1750572656795,-6113.03,0.00019178,2]
[366921556,1750572656805,-6113.03,0.00019178,2]
[366921557,1750572656814,-6113.03,0.00019178,2]
[366921558,1750572656823,-490.0,0.00019178,2]
[366921559,1750572656832,-607.87,0.00019178,2]
[366921560,1750572656842,-3245.66,0.00019178,2]
[366921561,1750572656851,-490.0,0.00019178,2]
[366921562,1750572656860,-1277.09,0.00019178,2]
[366921563,1750572656869,-490.0,0.00019178,2]
[366921564,1750572656879,-6472.51,0.00019178,2]
[366921565,1750572656888,-490.0,0.00019178,2]
[366921566,1750572656898,-490.0,0.00019178,2]
[366921567,1750572656908,-490.0,0.00019178,2]
[366921568,1750572656917,-411.34576611,0.00019178,2]
[366921569,1750572656926,-1257.93,0.00019178,2]
[366921570,1750572656935,-490.0,0.00019178,2]
[366921571,1750572656944,-490.0,0.00019178,2]
[366921572,1750572656954,-1468.84,0.00019178,2]
[366921573,1750572656963,-4369.13,0.00019178,2]
[366921574,1750572656972,-1675.63,0.00019178,2]
[366921575,1750572656982,-666.0,0.00019178,2]
[366921576,1750572656992,-744.25880383,0.00019178,2]
[366921577,1750572657001,-2107.18464494,0.00019178,2]
[366921578,1750572657010,-183.06454144,0.00019183,2]
[366921579,1750572657020,-4109.05,0.00019199,2]
[366921580,1750572657029,-500.0,0.00019199,2]
[366921581,1750572657039,-95519.70943877,0.000192,2]
[366921582,1750572657048,-2169.04,0.000192,2]
[366921583,1750572657058,-151.300273,0.000192,2]
[366921584,1750572657068,-151.0,0.000192,2]
[366921585,1750572657078,-151.633051,0.000192,2]
[366921586,1750572657088,-153.789939,0.000192,2]
[366921587,1750572657098,-151.0,0.000192,2]
[366921588,1750572657108,-557.70915,0.000192,2]
[366921589,1750572657118,-151.0,0.000192,2]
[366921590,1750572657127,-151.0,0.000192,2]
[366921591,1750572657137,-349.555136,0.000192,2]
[366921592,1750572657147,-349.555136,0.000192,2]
[366921593,1750572657157,-220.346819,0.000192,2]
[366921594,1750572657166,-220.346819,0.000192,2]
[366921595,1750572657176,-885.73,0.00019205,2]
[366921596,1750572657185,-1680.0,0.00019217,2]
[366921597,1750572657195,-435.739,0.00019263,2]
[366921598,1750572657205,-150.0,0.0001927,2]
[366921599,1750572657214,-620.08,0.00019281,2]
[366921600,1750572657223,-3188.41,0.00019281,2]
[366921601,1750572657233,-1344.86,0.00019281,2]
[366921602,1750572657243,-150.0,0.00019315,2]
[366921603,1750572657252,-500.0,0.00019315,2]
[366921604,1750572657262,-150.0,0.00019315,2]
[366921605,1750572657272,-150.0,0.00019315,2]
[366921606,1750572657282,-150.0,0.00019315,2]
[366921607,1750572657292,-500.0,0.00019315,2]
[366921608,1750572657301,-925.98,0.00019333,2]
[366921609,1750572657311,-500.0,0.00019333,2]
[366921610,1750572657320,-500.0,0.00019333,2]
[366921611,1750572657330,-500.0,0.00019333,2]
[366921612,1750572657340,-679.18,0.00019333,2]
[366921613,1750572657350,-500.0,0.00019333,2]
[366921614,1750572657359,-999.99,0.00019339,2]
[366921615,1750572657369,-150.99,0.00019339,2]
[366921616,1750572657378,-5140.04,0.00019339,2]
[366921617,1750572657388,-150.99,0.00019339,2]
[366921618,1750572657398,-7206.99,0.00019339,2]
[366921619,1750572657408,-9999.99,0.00019339,2]
[366921620,1750572657417,-150.0,0.00019342,2]
[366921621,1750572657427,-500.0,0.00019342,2]
[366921622,1750572657436,-150.0,0.00019342,2]
[366921623,1750572657445,-500.0,0.00019342,2]
[366921624,1750572657454,-200.0,0.00019346,2]
[366921625,1750572657464,-6113.03,0.00019351,2]
[366921626,1750572657473,-162.35736245,0.00019352,2]
[366921627,1750572657483,-151.7159,0.00019352,2]
[366921628,1750572657493,-151.0,0.00019352,2]
[366921629,1750572657502,-174.21778261,0.00019352,2]
[366921630,1750572657511,-23805.52965579,0.00019352,2]
[366921631,1750572657524,-170.27989396,0.00019352,2]
[366921632,1750572657534,-419.36792488,0.00019352,2]
[366921633,1750572657543,-207.26117849,0.0001937,2]
[366921634,1750572657553,-500.0,0.0001937,2]
[366921635,1750572657565,-500.0,0.0001937,2]
[366921636,1750572657575,-500.0,0.00019373,2]
[366921637,1750572657585,-500.0,0.00019373,2]
[366921638,1750572657599,-500.43012814,0.00019373,2]
[366921639,1750572657609,-500.0,0.00019373,2]
[366921640,1750572657618,-500.0,0.00019373,2]
[366921641,1750572657627,-500.95374439,0.00019373,2]
[366921642,1750572657636,-500.24791892,0.00019373,2]
[366921643,1750572657645,-500.50267874,0.00019373,2]
[366921644,1750572657654,-500.0,0.00019373,2]
[366921645,1750572657664,-500.0,0.00019373,2]
[366921646,1750572657673,-500.74374198,0.00019373,2]
[366921647,1750572657684,-500.83582982,0.00019373,2]
[366921648,1750572657694,-541.45082461,0.00019373,2]
[366921649,1750572657703,-500.0,0.00019373,2]
[366921650,1750572657713,-500.0,0.00019373,2]
[366921651,1750572657723,-500.0,0.00019373,2]
[366921652,1750572657732,-500.64588502,0.00019373,2]
[366921653,1750572657742,-367.84689339,0.00019373,2]
[366921654,1750572657751,-500.0,0.00019373,2]
[366921655,1750572657760,-500.0,0.00019373,2]
[366921656,1750572657770,-528.80985038,0.00019373,2]
[366921657,1750572657779,-502.83672334,0.00019373,2]
[366921658,1750572657788,-559.69951743,0.00019373,2]
[366921659,1750572657797,-502.52562412,0.00019373,2]
[366921660,1750572657807,-500.0,0.00019383,2]
[366921661,1750572657816,-533.84124689,0.00019383,2]
[366921662,1750572657825,-1900.5321276,0.00019384,2]
[366921663,1750572657834,-97300.5828053,0.00019384,2]
[366921664,1750572657844,-4109.05,0.00019391,2]
[366921665,1750572657853,-4109.05,0.00019391,2]
[366921666,1750572657862,-508.45,0.00019391,2]
[366921667,1750572657871,-508.45,0.00019391,2]
[366921668,1750572657880,-500.0,0.00019391,2]
[366921669,1750572657890,-6113.03,0.00019391,2]
[366921670,1750572657900,-6113.03,0.00019391,2]
[366921671,1750572657909,-365117.18254717,0.00019392,2]
[366921672,1750572657919,-1173931.83790073,0.00019392,3]
[366921673,1750572658892,-2308.43244878,0.00019392,3]
[366921674,1750572658937,-490.0,0.00019178,2]
[366921675,1750572658947,-516.6886836,0.00019392,3]
[366921676,1750572659605,-490.0,0.00019178,2]
[366921677,1750572659615,-450.0,0.00019178,2]
[366921678,1750572659734,-40.0,0.00019178,2]
[366921679,1750572659744,-151.0,0.000192,2]
[366921680,1750572659754,-324.3,0.00019392,3]
[366921681,1750572659783,-34493.1817,0.00019392,3]
[366921682,1750572659795,-1280.0,0.00019392,3]
[366921683,1750572660538,-490.0,0.00019178,2]
[366921684,1750572660547,-20169.48812017,0.00019392,3]
[366921685,1750572661989,-837.86,0.00019178,2]
[366921686,1750572661999,-623.27486106,0.00019392,3]
[366921687,1750572671682,202.0,0.00017418,2]
[366921688,1750573053999,150.0,0.00017455,2]
[366921689,1750573072425,8781.28667213,0.00024658,120]
[366921691,1750573304823,153.47,0.00013699,2]
[366921692,1750573337086,-153.96,0.00018208,2]
[366921693,1750573337117,-250.0,0.00018211,2]
[366921694,1750573337147,-1200.0,0.00018212,2]
[366921695,1750573337178,-12860.04,0.00018213,2]
[366921696,1750573425575,573.24593586,0.000246,120]
[366921715,1750573745598,-454.0,0.0002607,120]
[366921716,1750573745619,-239.05,0.0002607,120]
[366921717,1750573745639,-150.5,0.0002607,120]
[366921718,1750573745877,-454.0,0.0002608,120]
[366921719,1750573745899,-65.22,0.0002608,120]
[366921720,1750573746109,-85.28,0.0002608,120]
[366921721,1750573746131,-150.5,0.0002608,120]
[366921722,1750573746152,-146.94,0.0002609,120]
[366921723,1750573746368,-307.06,0.0002609,120]
[366921724,1750573746391,-146.94,0.0002609,120]
[366921725,1750573746619,-3.56,0.0002609,120]
[366921726,1750573746643,-150.5,0.0002609,120]
[366921727,1750573746668,-299.94,0.00026755,120]
[366921728,1750573748296,-200.06,0.00026755,120]
[366921730,1750573753670,136.45,0.00024779,120]
[366921731,1750573753693,278.92,0.00024779,120]
[366921744,1750573773445,221.08,0.0002609,120]
[366921745,1750573773470,96.92,0.0002609,120]
[366921746,1750573773998,318.0,0.0002608,120]
[366921751,1750573774446,318.0,0.0002607,120]
[366921761,1750573832348,-203.0,0.00017572,2]
[366921762,1750573832358,-608.63,0.00017583,2]
[366921763,1750573832367,-84.33241849,0.00018021,2]
[366921764,1750573832433,-331.03758151,0.00018021,2]
[366921765,1750573832442,-1200.0,0.00018212,2]
[366921766,1750573832451,-300.0,0.00018212,2]
[366921767,1750573832461,-300.0,0.00018212,2]
[366921768,1750573832470,-400.10765872,0.00018213,2]
[366921769,1750573832522,-494.66,0.00018213,2]
[366921770,1750573832534,-364.73919525,0.00018213,2]
[366921871,1750573838265,-1146.70000002,0.00018213,2]
[366921872,1750573838277,-515.0,0.00018213,2]
[366921873,1750573838290,-8118.75314601,0.00018213,2]
[366921874,1750573838300,-153.96,0.00018214,2]
[366921875,1750573838309,-153.96,0.00018219,2]
[366921876,1750573838319,-166.61,0.00018224,2]
[366921877,1750573838329,-153.96,0.00018224,2]
[366921878,1750573838339,-153.96,0.0001823,2]
[366921879,1750573838348,-1000.0,0.00018234,2]
[366921880,1750573838357,-153.96,0.00018235,2]
[366921881,1750573838366,-200.0,0.00018239,2]
[366921882,1750573838376,-153.96,0.0001824,2]
[366921883,1750573838392,-148.87685399,0.00018246,2]
[366921884,1750573838428,-5.08314601,0.00018246,2]
[366921885,1750573838438,-153.96,0.00018251,2]
[366921886,1750573838447,-153.96,0.00018256,2]
[366921887,1750573838456,-153.96,0.00018262,2]
[366921888,1750573838466,-168.0,0.00018263,2]
[366921889,1750573838475,-153.96,0.00018267,2]
[366921890,1750573838485,-153.96,0.00018272,2]
[366921891,1750573838494,-153.96,0.00018278,2]
[366921892,1750573838504,-153.96,0.00018283,2]
[366921893,1750573838513,-153.96,0.00018288,2]
[366921894,1750573838523,-153.96,0.00018294,2]
[366921895,1750573838532,-302.81789954,0.00018299,2]
[366921896,1750573838542,-153.96,0.00018299,2]
[366921897,1750573838551,-2751.0,0.00018332,2]
[366921898,1750573838560,-151.0,0.00018371,2]
[366921899,1750573838570,-151.0,0.00018371,2]
[366921900,1750573838579,-300.0,0.00018371,2]
[366921901,1750573838589,-300.0,0.00018371,2]
[366921902,1750573838599,-151.0,0.00018371,2]
[366921903,1750573838608,-300.0,0.00018371,2]
[366921904,1750573838618,-151.0,0.00018371,2]
[366921906,1750573838902,-300.0,0.00018371,2]
[366921907,1750573838917,-151.0,0.00018371,2]
[366921908,1750573838928,-300.0,0.00018371,2]
[366921909,1750573838938,-151.0,0.00018371,2]
[366921910,1750573838949,-300.0,0.00018371,2]
[366921911,1750573838959,-151.0,0.00018371,2]
[366921912,1750573838969,-151.0,0.00018371,2]
[366921913,1750573838978,-300.0,0.00018371,2]
[366921914,1750573838988,-500.0,0.00018371,2]
[366921915,1750573838998,-151.0,0.00018371,2]
[366921916,1750573839007,-151.0,0.00018371,2]
[366921917,1750573839017,-300.0,0.00018371,2]
[366921918,1750573839027,-500.0,0.00018371,2]
[366921919,1750573839037,-151.0,0.00018371,2]
[366921920,1750573839048,-500.0,0.00018371,2]
[366921921,1750573839058,-500.0,0.00018371,2]
[366921922,1750573839068,-151.0,0.00018371,2]
[366921923,1750573839078,-500.0,0.00018371,2]
[366921924,1750573839088,-500.0,0.00018371,2]
[366921925,1750573839098,-151.0,0.00018371,2]
[366921926,1750573839108,-500.0,0.00018371,2]
[366921927,1750573839118,-500.0,0.00018371,2]
[366921928,1750573839127,-151.0,0.00018371,2]
[366921929,1750573839138,-151.0,0.00018371,2]
[366921930,1750573839148,-500.0,0.00018371,2]
[366921931,1750573839158,-500.0,0.00018371,2]
[366921932,1750573839168,-500.0,0.00018371,2]
[366921933,1750573839178,-500.0,0.00018371,2]
[366921934,1750573839187,-500.0,0.00018371,2]
[366921935,1750573839197,-207.4,0.00018371,2]
[366921936,1750573839207,-500.0,0.00018371,2]
[366921937,1750573839217,-948.94619,0.00019004,2]
[366921938,1750573839227,-150.0,0.00019176,2]
[366921939,1750573839237,-150.0,0.00019176,2]
[366921940,1750573839247,-5303.26770317,0.00019177,2]
[366921941,1750573839257,-494.57770239,0.00019178,2]
[366921942,1750573839267,-490.0,0.00019178,2]
[366921943,1750573839276,-151.0,0.00019178,2]
[366921944,1750573839286,-220.90555601,0.00019178,2]
[366921945,1750573839295,-490.0,0.00019178,2]
[366921946,1750573839305,-490.0,0.00019178,2]
[366921947,1750573839314,-490.0,0.00019178,2]
[366921948,1750573839323,-490.0,0.00019178,2]
[366921949,1750573839333,-405.97563364,0.00019178,2]
[366921950,1750573839343,-490.0,0.00019178,2]
[366921951,1750573839353,-490.0,0.00019178,2]
[366921952,1750573839363,-490.0,0.00019178,2]
[366921953,1750573839372,-490.0,0.00019178,2]
[366921954,1750573839382,-490.0,0.00019178,2]
[366921955,1750573839393,-170.63669906,0.00019178,2]
[366921956,1750573839402,-490.0,0.00019178,2]
[366921957,1750573839411,-490.0,0.00019178,2]
[366921958,1750573839421,-490.0,0.00019178,2]
[366921959,1750573839431,-490.0,0.00019178,2]
[366921960,1750573839441,-553.79218834,0.00019178,2]
[366921961,1750573839450,-539.32,0.00019178,2]
[366921962,1750573839460,-490.0,0.00019178,2]
[366921963,1750573839470,-174.2135322,0.00019178,2]
[366921964,1750573839479,-490.0,0.00019178,2]
[366921965,1750573839489,-490.0,0.00019178,2]
[366921966,1750573839498,-490.0,0.00019178,2]
[366921967,1750573839508,-490.0,0.00019178,2]
[366921968,1750573839518,-490.0,0.00019178,2]
[366921969,1750573839527,-490.0,0.00019178,2]
[366921970,1750573839538,-490.0,0.00019178,2]
[366921971,1750573839547,-490.0,0.00019178,2]
[366921972,1750573839557,-153.845938,0.00019178,2]
[366921973,1750573839567,-490.0,0.00019178,2]
[366921974,1750573839577,-151.0,0.00019178,2]
[366921975,1750573839586,-490.0,0.00019178,2]
[366921976,1750573839595,-1000.0,0.00019178,2]
[366921977,1750573839605,-490.0,0.00019178,2]
[366921978,1750573839615,-220.71319354,0.00019178,2]
[366921979,1750573839624,-490.0,0.00019178,2]
[366921980,1750573839635,-490.0,0.00019178,2]
[366921981,1750573839645,-490.0,0.00019178,2]
[366921982,1750573839655,-490.89727234,0.00019178,2]
[366921983,1750573839665,-490.0,0.00019178,2]
[366921984,1750573839674,-490.0,0.00019178,2]
[366921985,1750573839684,-490.0,0.00019178,2]
[366921986,1750573839694,-490.0,0.00019178,2]
[366921987,1750573839703,-490.0,0.00019178,2]